Workbook

Sheet Cover_Sheet
D1: PREPARED BY:
A2: THE UNDERSIGNED CERTIFIES THAT (CONTRACTOR NAME)___________________________ IS CURRENTLY REGISTERED WITH THE VIRGINIA STATE BOARD OF CONTRACTORS AS REQUIRED BY THE CODE OF VIRGINIA. CERTIFICATE NUMBER _________________ WAS ISSUED ON THE ________DAY OF _____________, 20XX. THE UNDERSIGNED FURTHER CERTIFIES THAT THE REGISTRATION FEE AND ALL RENEWAL FEES REQUIRED UNDER LAW HAVE BEEN PAID. THE CONTRACTOR AGREES TO FURNISH ALL NECESSARY LABOR, EQUIPMENT, MATERIALS, AND ALL THINGS NECESSARY TO PERFORM THE WORK AS SET FORTH IN ACCORDANCE WITH THE PLANS AND SPECIFICATIONS. THE CONTRACTOR AGREES TO PERFORM RELATED WORK FOR THE FOLLOWING ITEMS AT THE FOLLOWING STIPULATED PRICES: (ALL PRICES INCLUDE PROVISION AND INSTALLATION).
D3: CHECKED BY:
A5: BIDDERS SHALL PROVIDE PRICES ON BOTH PROJECTS TO BE DEEMED RESPONSIVE. UNIT PRICES SHALL BE ENTERED FOR EACH PROJECT INDIVDUIALLY ON THERE RESPECTIVE TABS
A7: CategoryNum | B7: CATEGORY TITLE | C7: MA13 Bid | D7: CC16 Bid | E7: Total Bid Amount
A8: C1 | B8: GENERAL EARTH WORK | C8: =MA13_Unit_Price_Tab!F10 -> 0 | D8: =CC16_Unit_Price_Tab!F9 -> 0 | E8: =C8+D8 -> 0
A9: C2 | B9: CONCRETE WORK | C9: =MA13_Unit_Price_Tab!F20 -> 0 | D9: =CC16_Unit_Price_Tab!F18 -> 0 | E9: =C9+D9 -> 0
A10: C3 | B10: ASPHALT WORK | C10: =MA13_Unit_Price_Tab!F27 -> 0 | D10: =CC16_Unit_Price_Tab!F25 -> 0 | E10: 0
A11: C4 | B11: STORM SEWER UTILITY WORK | C11: =MA13_Unit_Price_Tab!F32 -> 0 | D11: =CC16_Unit_Price_Tab!F36 -> 0 | E11: 0
A12: C5 | B12: GUARDRAIL | C12: =MA13_Unit_Price_Tab!F36 -> 0 | D12: =CC16_Unit_Price_Tab!F40 -> 0 | E12: 0
A13: C6 | B13: WATERMAIN WORK | C13: =MA13_Unit_Price_Tab!F40 -> 0 | D13: =CC16_Unit_Price_Tab!F50 -> 0 | E13: 0
A14: C7 | B14: SANITARY SEWER WORK | C14: =MA13_Unit_Price_Tab!F44 -> 0 | D14: =CC16_Unit_Price_Tab!F54 -> 0 | E14: 0
A15: C8 | B15: TRAFFIC SIGNAL WORK | C15: =MA13_Unit_Price_Tab!F48 -> 0 | D15: =CC16_Unit_Price_Tab!F59 -> 0 | E15: 0
A16: C9 | B16: STREET LIGHTING WORK | C16: =MA13_Unit_Price_Tab!F61 -> 0 | D16: =CC16_Unit_Price_Tab!F68 -> 0 | E16: 0
A17: C10 | B17: PAVEMENT MARKING AND SIGNAGE WORK | C17: =MA13_Unit_Price_Tab!F77 -> 0 | D17: =CC16_Unit_Price_Tab!F87 -> 0 | E17: 0
A18: C11 | B18: LANDSCAPE AND HARDSCAPE RESTORATION WORK | C18: =MA13_Unit_Price_Tab!F85 -> 0 | D18: =CC16_Unit_Price_Tab!F95 -> 0 | E18: 0
A19: C12 | B19: BUS STOP SHELTER AND FURNISHINGS | C19: =MA13_Unit_Price_Tab!F104 -> 0 | D19: =CC16_Unit_Price_Tab!F99 -> 0 | E19: 0
A20: C13 | B20: EROSION AND SEDIMENT CONTROL WORK | C20: =MA13_Unit_Price_Tab!F108 -> 0 | D20: =CC16_Unit_Price_Tab!F103 -> 0 | E20: 0
A21: C15 | B21: UNLISTED WORK | C21: =MA13_Unit_Price_Tab!F112 -> 0 | D21: =CC16_Unit_Price_Tab!F107 -> 0 | E21: 0
A22: C16 | B22: MOT AND RE-MOBILIZATION WORK | C22: =MA13_Unit_Price_Tab!F116 -> 0 | D22: =CC16_Unit_Price_Tab!F111 -> 0 | E22: 0
A23: C17 | B23: STORMWATER WORK | C23: =MA13_Unit_Price_Tab!F120 -> 0 | D23: =CC16_Unit_Price_Tab!F115 -> 0 | E23: 0
A24: C18 | B24: NON COUNTY UTILITIES | C24: =MA13_Unit_Price_Tab!F124 -> 0 | D24: =CC16_Unit_Price_Tab!F119 -> 0 | E24: 0
A25: PCT | B25: PERCENTAGE LINE ITEMS | C25: =MA13_Unit_Price_Tab!F135 -> 0 | D25: =CC16_Unit_Price_Tab!F130 -> 0 | E25: 0
B27: SUB TOTAL | C27: =SUM(C8:C25) -> 0 | D27: =SUM(D8:D25) -> 0
A28: GRAND TOTAL | E28: =SUM(E8:E25) -> 0

Sheet MA13_Unit_Price_Tab
D1: PREPARED BY:
A2: THE UNDERSIGNED CERTIFIES THAT (CONTRACTOR NAME)___________________________ IS CURRENTLY REGISTERED WITH THE VIRGINIA STATE BOARD OF CONTRACTORS AS REQUIRED BY THE CODE OF VIRGINIA. CERTIFICATE NUMBER _________________ WAS ISSUED ON THE ________DAY OF _____________, 20XX. THE UNDERSIGNED FURTHER CERTIFIES THAT THE REGISTRATION FEE AND ALL RENEWAL FEES REQUIRED UNDER LAW HAVE BEEN PAID. THE CONTRACTOR AGREES TO FURNISH ALL NECESSARY LABOR, EQUIPMENT, MATERIALS, AND ALL THINGS NECESSARY TO PERFORM THE WORK AS SET FORTH IN ACCORDANCE WITH THE PLANS AND SPECIFICATIONS. THE CONTRACTOR AGREES TO PERFORM RELATED WORK FOR THE FOLLOWING ITEMS AT THE FOLLOWING STIPULATED PRICES: (ALL PRICES INCLUDE PROVISION AND INSTALLATION).
D3: CHECKED BY:
A5: MASTER ITEM # | B5: DESCRIPTION | C5: QTY | D5: UNIT | E5: UNIT PRICE | F5: TOTAL
A6: C1 | B6: =VLOOKUP(A6,Table_BidItem_CategoryClassification[#All],2,FALSE) -> GENERAL EARTH WORK
A7: MASTER ITEM # | B7: DESCRIPTION | C7: QTY | D7: UNIT | E7: UNIT PRICE | F7: TOTAL
A8: 02200-C1-00130 | B8: Aggregate, VDOT #21-A (Compacted in Place per VDOT standards & Specs) | C8: =ROUNDUP((1821+2070)*0.5/27,0) -> 73 | D8: CY | F8: =IFERROR($C8*$E8, "") -> $0.00
A9: 07110-C1-SP010 | B9: Hot Fluid - Applied Rubberized Asphalt Waterproofing, per plan over underground parking garage. (Waterproofing Sealant) | C9: 200 | D9: SF | F9: =IFERROR($C9*$E9, "") -> $0.00
E10: SUBTOTAL | F10: =SUBTOTAL(109,MA13_Unit_Price_Tab!$F$8:$F$9) -> $0.00
A12: C2 | B12: =VLOOKUP(A12,Table_BidItem_CategoryClassification[#All],2,FALSE) -> CONCRETE WORK
A13: MASTER ITEM # | B13: DESCRIPTION | C13: QTY | D13: UNIT | E13: UNIT PRICE | F13: TOTAL
A14: 02750-C2-00060 | B14: Concrete Curb & Gutter, Standard C-2 and C-2R (Arlington County Detail R-2.0), includes curb & gutter for aprons, ramps, etc. | C14: =ROUNDUP(120+22+130+128-160,0) -> 240 | D14: LF | F14: =IFERROR($C14*$E14, "") -> $0.00
A15: 02611-C2-00110 | B15: Concrete Sidewalk, 4" Thickness (Arlington County Detail R-2.0) | C15: =ROUNDUP((1211+333+1783+1440)/9,0) -> 530 | D15: SY | F15: $0.00
A16: 02611-C2-00190 | B16: CG-12 Detectable Warning Surface - Truncated Domes | C16: =ROUNDUP(20.54+21.56+10.35/9,0) -> 44 | D16: SY | F16: $0.00
A17: 02614-C2-SP010 | B17: Cast In Place Detectable Warning Surface (Color per Plan) | C17: =ROUNDUP((146+167)/9,0) -> 35 | D17: SY | F17: =IFERROR($C17*$E17, "") -> $0.00
A18: 02750-C2-SP100 | B18: Concrete Curb & Gutter, Standard C-4 (Arlington County Detail R-2.0), includes curb & gutter for Transit Station | C18: =ROUNDUP(34+42+90,0) -> 166 | D18: LF | F18: =IFERROR($C18*$E18, "") -> $0.00
A19: 03100-C2-SP200 | B19: 10" Thick Reinforced Rigid Concrete Road Pavement, Per Plan Detail | C19: =ROUNDUP(1000+1070/9,0) -> 1119 | D19: SY | F19: =IFERROR($C19*$E19, "") -> $0.00
E20: SUBTOTAL | F20: =SUBTOTAL(109,MA13_Unit_Price_Tab!$F$14:$F$19) -> $0.00
A22: C3 | B22: =VLOOKUP(A22,Table_BidItem_CategoryClassification[#All],2,FALSE) -> ASPHALT WORK
A23: MASTER ITEM # | B23: DESCRIPTION | C23: QTY | D23: UNIT | E23: UNIT PRICE | F23: TOTAL
A24: 02600-C3-00010 | B24: Asphalt Concrete, Planing or Milling (1/2" to 3" Depth) | C24: =ROUNDUP((324+6486+305)/9,0) -> 791 | D24: SY | F24: =IFERROR($C24*$E24, "") -> $0.00
A25: 02600-C3-00030 | B25: Asphalt Concrete, Base Course (VDOT BM-25.0A) | C25: =ROUNDUP((438+1052+43+288)*6/9*120/2000,0) -> 73 | D25: TON | F25: $0.00
A26: 02600-C3-00060 | B26: Asphalt Concrete, Surface Course (VDOT SM-9.5A) | C26: =ROUNDUP((438+1052+43+288)*2/9*120/2000,0) -> 25 | D26: TON | F26: $0.00
E27: SUBTOTAL | F27: =SUBTOTAL(109,MA13_Unit_Price_Tab!$F$24:$F$26) -> $0.00
A29: C4 | B29: =VLOOKUP(A29,Table_BidItem_CategoryClassification[#All],2,FALSE) -> STORM SEWER UTILITY WORK
A30: MASTER ITEM # | B30: DESCRIPTION | C30: QTY | D30: UNIT | E30: UNIT PRICE | F30: TOTAL
A31: 02505-C4-00100 | B31: CB-2A or CB-2B (throat lengths from 8'-6" up to 16'-0"), In Place Up to 6' Deep, Arlington County Standards. | C31: 1 | D31: EA | F31: =IFERROR($C31*$E31, "") -> $0.00
E32: SUBTOTAL | F32: =SUBTOTAL(109,MA13_Unit_Price_Tab!$F$31:$F$31) -> $0.00
A34: C5 | B34: =VLOOKUP(A34,Table_BidItem_CategoryClassification[#All],2,FALSE) -> GUARDRAIL
A35: MASTER ITEM # | B35: DESCRIPTION | C35: QTY | D35: UNIT | E35: UNIT PRICE | F35: TOTAL
E36: SUBTOTAL | F36: $0.00
A38: C6 | B38: =VLOOKUP(A38,Table_BidItem_CategoryClassification[#All],2,FALSE) -> WATERMAIN WORK
A39: MASTER ITEM # | B39: DESCRIPTION | C39: QTY | D39: UNIT | E39: UNIT PRICE | F39: TOTAL
E40: SUBTOTAL | F40: $0.00
A42: C7 | B42: =VLOOKUP(A42,Table_BidItem_CategoryClassification[#All],2,FALSE) -> SANITARY SEWER WORK
A43: MASTER ITEM # | B43: DESCRIPTION | C43: QTY | D43: UNIT | E43: UNIT PRICE | F43: TOTAL
E44: SUBTOTAL | F44: $0.00
A46: C8 | B46: =VLOOKUP(A46,Table_BidItem_CategoryClassification[#All],2,FALSE) -> TRAFFIC SIGNAL WORK
A47: MASTER ITEM # | B47: DESCRIPTION | C47: QTY | D47: UNIT | E47: UNIT PRICE | F47: TOTAL
E48: SUBTOTAL | F48: $0.00
A50: C9 | B50: =VLOOKUP(A50,Table_BidItem_CategoryClassification[#All],2,FALSE) -> STREET LIGHTING WORK
A51: MASTER ITEM # | B51: DESCRIPTION | C51: QTY | D51: UNIT | E51: UNIT PRICE | F51: TOTAL
A52: 14030-C9-00040 | B52: Furnish and Install 2 Inch Sch 40 PVC Conduit in Trench (Detail 14030-01) | C52: =ROUNDUP(34+142+28+43*4+88*4+184*4+64*4,0) -> 1720 | D52: LF | F52: =IFERROR($C52*$E52, "") -> $0.00
A53: 14040-C9-00170 | B53: Furnish and Install Junction Box and Lid SMALL (Detail 14040-01) | C53: 3 | D53: EA | F53: $0.00
A54: 14040-C9-00220 | B54: Enter Existing Junction Box | C54: 3 | D54: EA | F54: $0.00
A55: 14050-C9-00260 | B55: Furnish & Install # 6 THHN Copper Cable | C55: =ROUNDUP(34+142+28,0) -> 204 | D55: LF | F55: $0.00
A56: 14060-C9-00290 | B56: Install Streetlight Pole Foundation Type F-1 (Detail 14060-01) | C56: 2 | D56: EA | F56: $0.00
A57: 14100-C9-00630 | B57: Furnish and Install Meter Pan, Pedestal, Control Box and Components (Detail 14100-01) | C57: 2 | D57: EA | F57: $0.00
A58: 14112-C9-00920 | B58: Decorative Post-Top Aluminum Streetlight Pole with Double Post Top Luminaires per Arlington Lighting Standard 14112-02 | C58: 2 | D58: EA | F58: $0.00
A59: 13161-C9-SP010 | B59: Furnish and Install Junction Box and Lid LARGE (Detail 61-04 Type 4) | C59: 2 | D59: EA | F59: =IFERROR($C59*$E59, "") -> $0.00
A60: 13161-C9-SP020 | B60: Furnish and Install Junction Box and Lid LARGE (Detail 61-04 Type 5) | C60: 2 | D60: EA | F60: =IFERROR($C60*$E60, "") -> $0.00
E61: SUBTOTAL | F61: =SUBTOTAL(109,MA13_Unit_Price_Tab!$F$52:$F$60) -> $0.00
A63: C10 | B63: =VLOOKUP(A63,Table_BidItem_CategoryClassification[#All],2,FALSE) -> PAVEMENT MARKING AND SIGNAGE WORK
A64: MASTER ITEM # | B64: DESCRIPTION | C64: QTY | D64: UNIT | E64: UNIT PRICE | F64: TOTAL
A65: 02900-C10-00050 | B65: Twenty Four (24) Inch Transverse Markings, Note: Used For Continental (Ladder) Crosswalk | C65: 213 | D65: LF | F65: =IFERROR($C65*$E65, "") -> $0.00
A66: 02900-C10-00060 | B66: Yield Line Markings (Twenty Four (24) Inch Triangle/Twelve (12) Inch Spacing), Note: LF is Width of Lane for Units | C66: =26+17 -> 43 | D66: LF | F66: $0.00
A67: 02900-C10-00070 | B67: Four (4) Inch Longitudinal Solid Line | C67: =ROUNDUP(88+61+29+27+79+80+78+78,0) -> 520 | D67: LF | F67: $0.00
A68: 02900-C10-00120 | B68: Six (6) Inch Longitudinal Solid Line | C68: =ROUNDUP(10+10+10+10+10+81+380+84+91+720,-1) -> 1410 | D68: LF | F68: $0.00
A69: 02900-C10-00230 | B69: Eight (8) Foot Letters, Note: 'Turn Only' (for example) | C69: =6*7 -> 42 | D69: EA | F69: $0.00
A70: 02900-C10-00240 | B70: Single Arrows | C70: 2 | D70: EA | F70: $0.00
A71: 02900-C10-00350 | B71: Colorized Bike Lane Coatings (per Specification 02900) | C71: =ROUNDUP(351/9,-1) -> 40 | D71: SY | F71: $0.00
A72: 02619-C10-00410 | B72: Traffic Control Sign (Typical Stop, Yield, No Parking, Speed Limit, or Similar) | C72: 8 | D72: EA | F72: $0.00
A73: 02619-C10-00440 | B73: Traffic Control Sign (Typical Stop, Yield, No Parking, Speed Limit, or Similar), Mount Sign to Light or Utility Pole | C73: 1 | D73: EA | F73: $0.00
A74: 02619-C10-SP010 | B74: Removal of Existing Sign and Post | C74: 13 | D74: EA | F74: =IFERROR($C74*$E74, "") -> $0.00
A75: 02900-C10-SP100 | B75: Colorized Transit Lane Coatings (per Specification 02900) | C75: =ROUNDUP(2945/9,-1) -> 330 | D75: SY | F75: =IFERROR($C75*$E75, "") -> $0.00
A76: 13183-C10-SP200 | B76: Furinish and Install Rectangular Rapid Flashing Beacon with Foundation, per 72-01 detail | C76: 2 | D76: EA | F76: =IFERROR($C76*$E76, "") -> $0.00
E77: SUBTOTAL | F77: =SUBTOTAL(109,MA13_Unit_Price_Tab!$F$65:$F$76) -> $0.00
A79: C11 | B79: =VLOOKUP(A79,Table_BidItem_CategoryClassification[#All],2,FALSE) -> LANDSCAPE AND HARDSCAPE RESTORATION WORK
A80: MASTER ITEM # | B80: DESCRIPTION | C80: QTY | D80: UNIT | E80: UNIT PRICE | F80: TOTAL
A81: 02801-C11-00040 | B81: Shredded hardwood mulch; Aged 6 months minimum - Free of Trash & Debris | C81: =ROUNDUP(161*0.5/27,0) -> 3 | D81: CY | F81: =IFERROR($C81*$E81, "") -> $0.00
A82: 02801-C11-00060 | B82: Sod, Tall Fescue/Bluegrass Mixture | C82: =ROUNDUP(555/9,0) -> 62 | D82: SY | F82: $0.00
A83: 02800-C11-00500 | B83: Tree/Stump Removal - Class A. Remove and Dispose, Up to 6" DBH to 12" DBH (Diameter at Breast Height) | C83: 6 | D83: EA | F83: $0.00
A84: 02800-C11-00100 | B84: Brick Pavers, Including Concrete Base (Arlington County Detail R-2.1) | C84: =ROUNDUP((33+47+220)/9,0) -> 34 | D84: SY | F84: $0.00
E85: SUBTOTAL | F85: =SUBTOTAL(109,MA13_Unit_Price_Tab!$F$81:$F$84) -> $0.00
A87: C12 | B87: =VLOOKUP(A87,Table_BidItem_CategoryClassification[#All],2,FALSE) -> BUS STOP SHELTER AND FURNISHINGS
A88: MASTER ITEM # | B88: DESCRIPTION | C88: QTY | D88: UNIT | E88: UNIT PRICE | F88: TOTAL
A89: 10530-C12-00010 | B89: Bus Shelter Pad (Detail R-2.10) | C89: =ROUNDUP((256+327)/9,0) -> 65 | D89: SY | F89: =IFERROR($C89*$E89, "") -> $0.00
A90: 10530-C12-00100 | B90: Install 6' Free-standing Bench | C90: 4 | D90: EA | F90: $0.00
A91: 10530-C12-00130 | B91: Install Bus Shelter Litter Receptacle | C91: 2 | D91: EA | F91: $0.00
A92: 10530-C12-00131 | B92: Install Bus Shelter Recycling Receptacle | C92: 2 | D92: EA | F92: $0.00
A93: 10530-C12-00185 | B93: Solar-powered LED Light Panel Kit | C93: 4 | D93: EA | F93: $0.00
A94: 10530-C12-SP010 | B94: Install Modified Bicycle Rack per plans | C94: 6 | D94: EA | F94: $0.00
A95: 10530-C12-SP020 | B95: Install 4' Free-standing Bench | C95: 6 | D95: EA | F95: $0.00
A96: 10530-C12-SP030 | B96: Install Bus Shelter Unit, 5' x 20' Shelter per plans | C96: 4 | D96: EA | F96: $0.00
A97: 10530-C12-SP040 | B97: Furinish and Install Shelter Name Box and all components to shelter | C97: 2 | D97: EA | F97: =IFERROR($C97*$E97, "") -> $0.00
A98: 16020-C12-SP100 | B98: Furnish and install Electrical and Communication Station Utility System per the Approved Station Design Plan Set (including but not limited to: conduit, wiring, junction boxes, etc.) | C98: 1 | D98: LS | F98: $0.00
A99: 10425-C12-SP110 | B99: Furnish and Install Station Flag Sign per Aproved Station Design Plan Set | C99: 2 | D99: EA | F99: $0.00
A100: 10425-C12-SP120 | B100: Furinish and Install Bolt Down LCD Monitor Stanchion per Approved Station Design Plan Set | C100: 2 | D100: EA | F100: =IFERROR($C100*$E100, "") -> $0.00
A101: 10425-C12-SP130 | B101: Furnish and Install LCD Monitor per Approved Station Design Plan Set | C101: 2 | D101: EA | F101: $0.00
A102: 10425-C12-SP140 | B102: Install Station Flag Sign Foundation, per Approved Station Design Plan Set | C102: 3 | D102: CY | F102: $0.00
A103: 10531-C12-SP200 | B103: Install Transit Station Rub Rail | C103: 1 | D103: LS | F103: $0.00
E104: SUBTOTAL | F104: =SUBTOTAL(109,MA13_Unit_Price_Tab!$F$89:$F$103) -> $0.00
A106: C13 | B106: =VLOOKUP(A106,Table_BidItem_CategoryClassification[#All],2,FALSE) -> EROSION AND SEDIMENT CONTROL WORK
A107: MASTER ITEM # | B107: DESCRIPTION | C107: QTY | D107: UNIT | E107: UNIT PRICE | F107: TOTAL
E108: SUBTOTAL | F108: $0.00
A110: C15 | B110: =VLOOKUP(A110,Table_BidItem_CategoryClassification[#All],2,FALSE) -> UNLISTED WORK
A111: MASTER ITEM # | B111: DESCRIPTION | C111: QTY | D111: UNIT | E111: UNIT PRICE | F111: TOTAL
E112: SUBTOTAL | F112: $0.00
A114: C16 | B114: =VLOOKUP(A114,Table_BidItem_CategoryClassification[#All],2,FALSE) -> MOT AND RE-MOBILIZATION WORK
A115: MASTER ITEM # | B115: DESCRIPTION | C115: QTY | D115: UNIT | E115: UNIT PRICE | F115: TOTAL
E116: SUBTOTAL | F116: $0.00
A118: C17 | B118: =VLOOKUP(A118,Table_BidItem_CategoryClassification[#All],2,FALSE) -> STORMWATER WORK
A119: MASTER ITEM # | B119: DESCRIPTION | C119: QTY | D119: UNIT | E119: UNIT PRICE | F119: TOTAL
E120: SUBTOTAL | F120: $0.00
A122: C18 | B122: =VLOOKUP(A122,Table_BidItem_CategoryClassification[#All],2,FALSE) -> NON COUNTY UTILITIES
A123: MASTER ITEM # | B123: DESCRIPTION | C123: QTY | D123: UNIT | E123: UNIT PRICE | F123: TOTAL
E124: SUBTOTAL | F124: $0.00
E127: CONTRACT TOTAL (EXCLUDING PERCENTAGE ITEMS) | F127: =SUMIF(E:E,"SUBTOTAL",F:F) -> $0.00
A129: PCT | B129: =VLOOKUP(A129,Table_BidItem_CategoryClassification[#All],2,FALSE) -> PERCENTAGE LINE ITEMS
A130: MASTER ITEM # | B130: DESCRIPTION | C130: QTY | D130: UNIT | E130: UNIT PRICE | F130: TOTAL
A131: 01500-C13-10000 | B131: Temporary Erosion and Sediment Controls | C131: 1 | D131: LS | F131: =IFERROR($C131*$E131, "") -> $0.00
A132: 01000-C16-00010 | B132: Maintenance of Traffic (MOT) | C132: 1 | D132: LS | F132: =IFERROR($C132*$E132, "") -> $0.00
A133: 01000-C16-00030 | B133: Mobilization and De-Mobilization | C133: 1 | D133: LS | F133: =IFERROR($C133*$E133, "") -> $0.00
A134: 01500-SA-00200 | B134: SWPPP Administration | C134: 1 | D134: LS | F134: =IFERROR($C134*$E134, "") -> $0.00
E135: PERCENTAGE LINE ITEMS SUBTOTAL | F135: =SUBTOTAL(109,MA13_Unit_Price_Tab!$F$131:$F$134) -> $0.00
E139: PROJECT TOTAL : | F139: =$F$135+F127 -> $0.00

Sheet CC16_Unit_Price_Tab
D1: PREPARED BY:
A2: THE UNDERSIGNED CERTIFIES THAT (CONTRACTOR NAME)___________________________ IS CURRENTLY REGISTERED WITH THE VIRGINIA STATE BOARD OF CONTRACTORS AS REQUIRED BY THE CODE OF VIRGINIA. CERTIFICATE NUMBER _________________ WAS ISSUED ON THE ________DAY OF _____________, 20XX. THE UNDERSIGNED FURTHER CERTIFIES THAT THE REGISTRATION FEE AND ALL RENEWAL FEES REQUIRED UNDER LAW HAVE BEEN PAID. THE CONTRACTOR AGREES TO FURNISH ALL NECESSARY LABOR, EQUIPMENT, MATERIALS, AND ALL THINGS NECESSARY TO PERFORM THE WORK AS SET FORTH IN ACCORDANCE WITH THE PLANS AND SPECIFICATIONS. THE CONTRACTOR AGREES TO PERFORM RELATED WORK FOR THE FOLLOWING ITEMS AT THE FOLLOWING STIPULATED PRICES: (ALL PRICES INCLUDE PROVISION AND INSTALLATION).
D3: CHECKED BY:
A5: MASTER ITEM # | B5: DESCRIPTION | C5: QTY | D5: UNIT | E5: UNIT PRICE | F5: TOTAL
A6: C1 | B6: =VLOOKUP(A6,Table_BidItem_CategoryClassification[#All],2,FALSE) -> GENERAL EARTH WORK
A7: MASTER ITEM # | B7: DESCRIPTION | C7: QTY | D7: UNIT | E7: UNIT PRICE | F7: TOTAL
A8: 02200-C1-00130 | B8: Aggregate, VDOT #21-A (Compacted in Place per VDOT standards & Specs) | C8: 440 | D8: CY | F8: =IFERROR($C8*$E8, "") -> $0.00
E9: SUBTOTAL | F9: =SUBTOTAL(109,CC16_Unit_Price_Tab!$F$8:$F$8) -> $0.00
A11: C2 | B11: =VLOOKUP(A11,Table_BidItem_CategoryClassification[#All],2,FALSE) -> CONCRETE WORK
A12: MASTER ITEM # | B12: DESCRIPTION | C12: QTY | D12: UNIT | E12: UNIT PRICE | F12: TOTAL
A13: 02750-C2-00020 | B13: Concrete Curb, Standard Header Curb C-3 (Arlington County Detail R-2.0), includes curb for aprons, ramps, etc. | C13: 115 | D13: LF | F13: =IFERROR($C13*$E13, "") -> $0.00
A14: 02750-C2-00060 | B14: Concrete Curb & Gutter, Standard C-2 and C-2R (Arlington County Detail R-2.0), includes curb & gutter for aprons, ramps, etc. | C14: 1339 | D14: LF | F14: =IFERROR($C14*$E14, "") -> $0.00
A15: 02611-C2-00110 | B15: Concrete Sidewalk, 4" Thickness (Arlington County Detail R-2.0) | C15: 1301 | D15: SY | F15: =IFERROR($C15*$E15, "") -> $0.00
A16: 02611-C2-00190 | B16: CG-12 Detectable Warning Surface - Truncated Domes | C16: 18 | D16: SY | F16: =IFERROR($C16*$E16, "") -> $0.00
A17: 02611-C2-00180 | B17: Concrete Driveway Entrance, 9" Thick Commercial (Arlington County Details R-2.4A, R-2.4B, R-2.4C, R-2.4D) | C17: 188 | D17: SY | F17: =IFERROR($C17*$E17, "") -> $0.00
E18: SUBTOTAL | F18: =SUBTOTAL(109,CC16_Unit_Price_Tab!$F$13:$F$17) -> $0.00
A20: C3 | B20: =VLOOKUP(A20,Table_BidItem_CategoryClassification[#All],2,FALSE) -> ASPHALT WORK
A21: MASTER ITEM # | B21: DESCRIPTION | C21: QTY | D21: UNIT | E21: UNIT PRICE | F21: TOTAL
A22: 02600-C3-00010 | B22: Asphalt Concrete, Planing or Milling (1/2" to 3" Depth) | C22: 4344 | D22: SY | F22: =IFERROR($C22*$E22, "") -> $0.00
A23: 02600-C3-00030 | B23: Asphalt Concrete, Base Course (VDOT BM-25.0A) | C23: 553 | D23: TON | F23: =IFERROR($C23*$E23, "") -> $0.00
A24: 02600-C3-00060 | B24: Asphalt Concrete, Surface Course (VDOT SM-9.5A) | C24: 705 | D24: TON | F24: =IFERROR($C24*$E24, "") -> $0.00
E25: SUBTOTAL | F25: =SUBTOTAL(109,CC16_Unit_Price_Tab!$F$22:$F$24) -> $0.00
A27: C4 | B27: =VLOOKUP(A27,Table_BidItem_CategoryClassification[#All],2,FALSE) -> STORM SEWER UTILITY WORK
A28: MASTER ITEM # | B28: DESCRIPTION | C28: QTY | D28: UNIT | E28: UNIT PRICE | F28: TOTAL
A29: 02500-C4-00820 | B29: 15" Pipe, RCP Class IV, In Place Up to 6' Deep | C29: 196 | D29: LF | F29: =IFERROR($C29*$E29, "") -> $0.00
A30: 02500-C4-00850 | B30: 18" Pipe, RCP Class IV, In Place Up to 6' Deep | C30: 83 | D30: LF | F30: $0.00
A31: 02500-C4-00030 | B31: Storm Manhole MH-2 (Arlington County Detail D-3.3), In Place, DEPTH 8' | C31: 2 | D31: EA | F31: $0.00
A32: 02505-C4-00120 | B32: PCB-2, In Place Up to 6' Deep, Arlington County Standards | C32: 5 | D32: EA | F32: $0.00
A33: 02505-C4-00470 | B33: Catch Basin Structure Top, Remove & Replace | C33: 1 | D33: EA | F33: $0.00
A34: 02505-C4-00520 | B34: Convert Catch Basin to Manhole | C34: 1 | D34: EA | F34: $0.00
A35: 02505-C4-00600 | B35: Storm Manhole, Catch Basin, Drop Inlet, Yard Inlet, or Grate Inlet, Remove | C35: 1 | D35: EA | F35: $0.00
E36: SUBTOTAL | F36: =SUBTOTAL(109,CC16_Unit_Price_Tab!$F$29:$F$35) -> $0.00
A38: C5 | B38: =VLOOKUP(A38,Table_BidItem_CategoryClassification[#All],2,FALSE) -> GUARDRAIL
A39: MASTER ITEM # | B39: DESCRIPTION | C39: QTY | D39: UNIT | E39: UNIT PRICE | F39: TOTAL
E40: SUBTOTAL | F40: $0.00
A42: C6 | B42: =VLOOKUP(A42,Table_BidItem_CategoryClassification[#All],2,FALSE) -> WATERMAIN WORK
A43: MASTER ITEM # | B43: DESCRIPTION | C43: QTY | D43: UNIT | E43: UNIT PRICE | F43: TOTAL
A44: 02550-C6-00190 | B44: Connect To Existing 12-Inch Water Main | C44: 2 | D44: EA | F44: =IFERROR($C44*$E44, "") -> $0.00
A45: 02550-C6-00250 | B45: Remove Existing Fire Hydrant | C45: 2 | D45: EA | F45: $0.00
A46: 02550-C6-00270 | B46: Install New Fire Hydrant (includes Fire Hydrant, Gate Valve with Valve Box and up to 20 LF 6-inch DIP CL-52) | C46: 2 | D46: EA | F46: $0.00
A47: 02550-C6-00300 | B47: Cut & Cap 12-Inch Water Main | C47: 2 | D47: EA | F47: $0.00
A48: 02550-C6-00030 | B48: 12-Inch Water Main, DIP CL-52, Upto 6' Deep | C48: 48 | D48: LF | F48: $0.00
A49: 02550-C6-00540 | B49: Abandon Existing Water Main (All sizes and depths) | C49: 20 | D49: LF | F49: $0.00
E50: SUBTOTAL | F50: =SUBTOTAL(109,CC16_Unit_Price_Tab!$F$44:$F$49) -> $0.00
A52: C7 | B52: =VLOOKUP(A52,Table_BidItem_CategoryClassification[#All],2,FALSE) -> SANITARY SEWER WORK
A53: MASTER ITEM # | B53: DESCRIPTION | C53: QTY | D53: UNIT | E53: UNIT PRICE | F53: TOTAL
E54: SUBTOTAL | F54: $0.00
A56: C8 | B56: =VLOOKUP(A56,Table_BidItem_CategoryClassification[#All],2,FALSE) -> TRAFFIC SIGNAL WORK
A57: MASTER ITEM # | B57: DESCRIPTION | C57: QTY | D57: UNIT | E57: UNIT PRICE | F57: TOTAL
A58: 13160-C8-03000 | B58: Traffic Signal Cost | C58: 1 | D58: LS | F58: =IFERROR($C58*$E58, "") -> $0.00
E59: SUBTOTAL | F59: =SUBTOTAL(109,CC16_Unit_Price_Tab!$F$58:$F$58) -> $0.00
A61: C9 | B61: =VLOOKUP(A61,Table_BidItem_CategoryClassification[#All],2,FALSE) -> STREET LIGHTING WORK
A62: MASTER ITEM # | B62: DESCRIPTION | C62: QTY | D62: UNIT | E62: UNIT PRICE | F62: TOTAL
A63: 14030-C9-00030 | B63: Furnish and Install 2 inch SCH 80 HDPE Direct Bore Conduit (Detail 14030-01) | C63: 915 | D63: LF | F63: =IFERROR($C63*$E63, "") -> $0.00
A64: 14040-C9-00180 | B64: Furnish and Install Junction Box and Lid LARGE (Detail 14040-02) | C64: 2 | D64: EA | F64: $0.00
A65: 14050-C9-00260 | B65: Furnish & Install # 6 TNNH Copper Cable | C65: 5000 | D65: LF | F65: $0.00
A66: 14060-C9-00290 | B66: Install Streetlight Pole Foundation (Detail 14060-01) | C66: 11 | D66: EA | F66: $0.00
A67: 14112-C9-00910 | B67: Decorative Post-Top Aluminum Streetlight Pole with Single Post-Top Luminaire per Arlington Lighting Standard 14112-01 | C67: 11 | D67: EA | F67: $0.00
E68: SUBTOTAL | F68: =SUBTOTAL(109,CC16_Unit_Price_Tab!$F$63:$F$67) -> $0.00
A70: C10 | B70: =VLOOKUP(A70,Table_BidItem_CategoryClassification[#All],2,FALSE) -> PAVEMENT MARKING AND SIGNAGE WORK
A71: MASTER ITEM # | B71: DESCRIPTION | C71: QTY | D71: UNIT | E71: UNIT PRICE | F71: TOTAL
A72: 02900-C10-00040 | B72: Eighteen (18) Inch Transverse Markings | C72: 240 | D72: LF | F72: =IFERROR($C72*$E72, "") -> $0.00
A73: 02900-C10-00050 | B73: Twenty Four (24) Inch Transverse Markings, Note: Used For Continental (Ladder) Crosswalk | C73: 1005 | D73: LF | F73: $0.00
A74: 02900-C10-00070 | B74: Four (4) Inch Longitudinal Solid Line | C74: 1565 | D74: LF | F74: $0.00
A75: 02900-C10-00080 | B75: Four (4) Inch Longitudinal Skip Line (Ten (10) Foot Line/Thirty (30) Foot Spacing), Note: Forty (40) LF Consists of Ten (10) LF of Marking and Thirty (30) LF of Space | C75: 975 | D75: LF | F75: $0.00
A76: 02900-C10-00160 | B76: Six (6) Inch Longitudinal Skip Line (Two (2) Foot Line/ Four (4) Foot Spacing), Note: Twelve (12) LF Consists of Two (2) LF of Marking and Four (4) LF of Space | C76: 955 | D76: LF | F76: $0.00
A77: 02900-C10-00170 | B77: Twelve (12) Inch Yellow Longitudinal Centerline, Two - Four (4) Inch Yellow Lines with Four (4) Inch Separation | C77: 310 | D77: LF | F77: $0.00
A78: 02900-C10-00240 | B78: Single Arrows | C78: 13 | D78: EA | F78: $0.00
A79: 02900-C10-00250 | B79: Combination Arrows | C79: 5 | D79: EA | F79: $0.00
A80: 02900-C10-00290 | B80: Standard Bicycle Symbols (MUTCD, Chapter 9C, Figure 9C-3), "Bike Symbol", "Helmeted Bicyclist Symbol" | C80: 2 | D80: EA | F80: $0.00
A81: 02900-C10-00300 | B81: Standard Bicycle Symbols (MUTCD, Chapter 9C, Figure 9C-9), "Shared Lane Marking" | C81: 8 | D81: EA | F81: $0.00
A82: 02900-C10-00320 | B82: Six (6) Foot Bicycle Lane Arrow (Only for Multi-Use or Bikes Opposing Traffic) | C82: 2 | D82: EA | F82: $0.00
A83: 02619-C10-00410 | B83: Traffic Control Sign (Typical Stop, Yield, No Parking, Speed Limit, or Similar) | C83: 8 | D83: EA | F83: $0.00
A84: 02619-C10-00420 | B84: Traffic Control Sign (Typical Stop, Yield, No Parking, Speed Limit, or Similar), Relocate with Existing Post | C84: 6 | D84: EA | F84: $0.00
A85: 02900-C10-SP001 | B85: Eight (8) Inch Yellow Gore Markings, Ten (10) Foot Spacing @ 45 Degree | C85: 370 | D85: LF | F85: $0.00
A86: 02900-C10-SP002 | B86: Detectable Directional Wayfinding Centerline | C86: 112 | D86: LF | F86: $0.00
E87: SUBTOTAL | F87: =SUBTOTAL(109,CC16_Unit_Price_Tab!$F$72:$F$86) -> $0.00
A89: C11 | B89: =VLOOKUP(A89,Table_BidItem_CategoryClassification[#All],2,FALSE) -> LANDSCAPE AND HARDSCAPE RESTORATION WORK
A90: MASTER ITEM # | B90: DESCRIPTION | C90: QTY | D90: UNIT | E90: UNIT PRICE | F90: TOTAL
A91: 02800-C11-00030 | B91: Topsoil for Street Trees, Purchased Mixture (per Arlington County DPR Specification) | C91: 214 | D91: CY | F91: =IFERROR($C91*$E91, "") -> $0.00
A92: 02801-C11-00060 | B92: Sod, Tall Fescue/Bluegrass Mixture | C92: 385 | D92: SY | F92: =IFERROR($C92*$E92, "") -> $0.00
A93: 02800-C11-00500 | B93: Tree/Stump Removal - Class A. Remove and Dispose, Up to 6" DBH to 12" DBH (Diameter at Breast Height) | C93: 3 | D93: EA | F93: =IFERROR($C93*$E93, "") -> $0.00
A94: 02800-C11-00603 | B94: Trees, Deciduous - 2.0 to 2.5" caliper | C94: 15 | D94: EA | F94: =IFERROR($C94*$E94, "") -> $0.00
E95: SUBTOTAL | F95: =SUBTOTAL(109,CC16_Unit_Price_Tab!$F$91:$F$94) -> $0.00
A97: C12 | B97: =VLOOKUP(A97,Table_BidItem_CategoryClassification[#All],2,FALSE) -> BUS STOP SHELTER AND FURNISHINGS
A98: MASTER ITEM # | B98: DESCRIPTION | C98: QTY | D98: UNIT | E98: UNIT PRICE | F98: TOTAL
E99: SUBTOTAL | F99: $0.00
A101: C13 | B101: =VLOOKUP(A101,Table_BidItem_CategoryClassification[#All],2,FALSE) -> EROSION AND SEDIMENT CONTROL WORK
A102: MASTER ITEM # | B102: DESCRIPTION | C102: QTY | D102: UNIT | E102: UNIT PRICE | F102: TOTAL
E103: SUBTOTAL | F103: $0.00
A105: C15 | B105: =VLOOKUP(A105,Table_BidItem_CategoryClassification[#All],2,FALSE) -> UNLISTED WORK
A106: MASTER ITEM # | B106: DESCRIPTION | C106: QTY | D106: UNIT | E106: UNIT PRICE | F106: TOTAL
E107: SUBTOTAL | F107: $0.00
A109: C16 | B109: =VLOOKUP(A109,Table_BidItem_CategoryClassification[#All],2,FALSE) -> MOT AND RE-MOBILIZATION WORK
A110: MASTER ITEM # | B110: DESCRIPTION | C110: QTY | D110: UNIT | E110: UNIT PRICE | F110: TOTAL
E111: SUBTOTAL | F111: $0.00
A113: C17 | B113: =VLOOKUP(A113,Table_BidItem_CategoryClassification[#All],2,FALSE) -> STORMWATER WORK
A114: MASTER ITEM # | B114: DESCRIPTION | C114: QTY | D114: UNIT | E114: UNIT PRICE | F114: TOTAL
E115: SUBTOTAL | F115: $0.00
A117: C18 | B117: =VLOOKUP(A117,Table_BidItem_CategoryClassification[#All],2,FALSE) -> NON COUNTY UTILITIES
A118: MASTER ITEM # | B118: DESCRIPTION | C118: QTY | D118: UNIT | E118: UNIT PRICE | F118: TOTAL
E119: SUBTOTAL | F119: $0.00
E122: CONTRACT TOTAL (EXCLUDING PERCENTAGE ITEMS) | F122: =SUMIF(E:E,"SUBTOTAL",F:F) -> $0.00
A124: PCT | B124: =VLOOKUP(A124,Table_BidItem_CategoryClassification[#All],2,FALSE) -> PERCENTAGE LINE ITEMS
A125: MASTER ITEM # | B125: DESCRIPTION | C125: QTY | D125: UNIT | E125: UNIT PRICE | F125: TOTAL
A126: 01500-C13-10000 | B126: Temporary Erosion and Sediment Controls | C126: 1 | D126: LS | F126: =IFERROR($C126*$E126, "") -> $0.00
A127: 01000-C16-00010 | B127: Maintenance of Traffic (MOT) | C127: 1 | D127: LS | F127: =IFERROR($C127*$E127, "") -> $0.00
A128: 01000-C16-00030 | B128: Mobilization and De-Mobilization | C128: 1 | D128: LS | F128: =IFERROR($C128*$E128, "") -> $0.00
A129: 01500-SA-00200 | B129: SWPPP Administration | C129: 1 | D129: LS | F129: =IFERROR($C129*$E129, "") -> $0.00
E130: PERCENTAGE LINE ITEMS SUBTOTAL | F130: =SUBTOTAL(109,CC16_Unit_Price_Tab!$F$126:$F$129) -> $0.00
E134: PROJECT TOTAL : | F134: =$F$130+F122 -> $0.00

Sheet SP_Info_Biditem_Category (hidden)
A1: CategoryNum | B1: Category_Title | C1: Item Type | D1: Path | E1: CategorySort
A2: C1 | B2: GENERAL EARTH WORK | C2: Item | D2: sites/extranet/EngineeringBureau/Lists/Info_BidItems_CategoryClassification | E2: 1
A3: C2 | B3: CONCRETE WORK | C3: Item | D3: sites/extranet/EngineeringBureau/Lists/Info_BidItems_CategoryClassification | E3: 2
A4: C3 | B4: ASPHALT WORK | C4: Item | D4: sites/extranet/EngineeringBureau/Lists/Info_BidItems_CategoryClassification | E4: 3
A5: C4 | B5: STORM SEWER UTILITY WORK | C5: Item | D5: sites/extranet/EngineeringBureau/Lists/Info_BidItems_CategoryClassification | E5: 4
A6: C5 | B6: GUARDRAIL | C6: Item | D6: sites/extranet/EngineeringBureau/Lists/Info_BidItems_CategoryClassification | E6: 5
A7: C6 | B7: WATERMAIN WORK | C7: Item | D7: sites/extranet/EngineeringBureau/Lists/Info_BidItems_CategoryClassification | E7: 6
A8: C7 | B8: SANITARY SEWER WORK | C8: Item | D8: sites/extranet/EngineeringBureau/Lists/Info_BidItems_CategoryClassification | E8: 7
A9: C8 | B9: TRAFFIC SIGNAL WORK | C9: Item | D9: sites/extranet/EngineeringBureau/Lists/Info_BidItems_CategoryClassification | E9: 8
A10: C9 | B10: STREET LIGHTING WORK | C10: Item | D10: sites/extranet/EngineeringBureau/Lists/Info_BidItems_CategoryClassification | E10: 9
A11: C10 | B11: PAVEMENT MARKING AND SIGNAGE WORK | C11: Item | D11: sites/extranet/EngineeringBureau/Lists/Info_BidItems_CategoryClassification | E11: 10
A12: C11 | B12: LANDSCAPE AND HARDSCAPE RESTORATION WORK | C12: Item | D12: sites/extranet/EngineeringBureau/Lists/Info_BidItems_CategoryClassification | E12: 11
A13: C12 | B13: BUS STOP SHELTER AND FURNISHINGS | C13: Item | D13: sites/extranet/EngineeringBureau/Lists/Info_BidItems_CategoryClassification | E13: 12
A14: C13 | B14: EROSION AND SEDIMENT CONTROL WORK | C14: Item | D14: sites/extranet/EngineeringBureau/Lists/Info_BidItems_CategoryClassification | E14: 13
A15: C14 | B15: MATERIAL TESTING WORK | C15: Item | D15: sites/extranet/EngineeringBureau/Lists/Info_BidItems_CategoryClassification | E15: 14
A16: C15 | B16: UNLISTED WORK | C16: Item | D16: sites/extranet/EngineeringBureau/Lists/Info_BidItems_CategoryClassification | E16: 15
A17: C16 | B17: MOT AND RE-MOBILIZATION WORK | C17: Item | D17: sites/extranet/EngineeringBureau/Lists/Info_BidItems_CategoryClassification | E17: 16
A18: M1 | B18: MAINTENANCE WORK | C18: Item | D18: sites/extranet/EngineeringBureau/Lists/Info_BidItems_CategoryClassification | E18: 101
A19: M2 | B19: MOT WORK | C19: Item | D19: sites/extranet/EngineeringBureau/Lists/Info_BidItems_CategoryClassification | E19: 102
A20: C17 | B20: STORMWATER WORK | C20: Item | D20: sites/extranet/EngineeringBureau/Lists/Info_BidItems_CategoryClassification | E20: 17
A21: RM | B21: REMOVED ITEM | C21: Item | D21: sites/extranet/EngineeringBureau/Lists/Info_BidItems_CategoryClassification | E21: 1001
A22: C18 | B22: NON COUNTY UTILITIES | C22: Item | D22: sites/extranet/EngineeringBureau/Lists/Info_BidItems_CategoryClassification | E22: 18
A23: PCT | B23: PERCENTAGE LINE ITEMS | C23: Item | D23: sites/extranet/EngineeringBureau/Lists/Info_BidItems_CategoryClassification | E23: 500
A24: VF | B24: VDOT FEE | C24: Item | D24: sites/extranet/EngineeringBureau/Lists/Info_BidItems_CategoryClassification | E24: 600
